[Event "Titled Tuesday Blitz June 20 Early 2023"]
[White "Bacrot, Etienne"]
[Black "Domingo Nunez, Ruben"]
[WhiteFideId "605506"]
[BlackFideId "22245570"]
[WhiteElo "2672"]
[BlackElo "2404"]
[Result "0-1"]
[Round "4"]
[TimeControl "180+2"]
[Date "2023.06.20"]
[WhiteClock "0:00:00"]
[BlackClock "0:00:05"]
[Board "29"]

1. d4 {[%clk 0:03:00]}  g6 {[%clk 0:03:00]} 2. h4 {[%clk 0:03:00]}  Nf6 {[%clk 0:03:00]} 3. Nc3 {[%clk 0:02:59]}  d5 {[%clk 0:03:01]} 4. Bf4 {[%clk 0:02:59]}  a6 {[%clk 0:03:01]} 5. e3 {[%clk 0:03:00]}  c5 {[%clk 0:03:01]} 6. h5 {[%clk 0:02:58]}  cxd4 {[%clk 0:02:59]} 7. exd4 {[%clk 0:02:55]}  gxh5 {[%clk 0:02:59]} 8. Be2 {[%clk 0:02:32]}  Bg4 {[%clk 0:02:26]} 9. Nf3 {[%clk 0:02:32]}  Nc6 {[%clk 0:02:21]} 10. Ne5 {[%clk 0:02:32]}  Qb6 {[%clk 0:02:11]} 11. Bxg4 {[%clk 0:02:27]}  hxg4 {[%clk 0:02:09]} 12. Nxc6 {[%clk 0:02:00]}  Qxc6 {[%clk 0:01:35]} 13. Be5 {[%clk 0:02:00]}  Rg8 {[%clk 0:01:21]} 14. Qd3 {[%clk 0:01:53]}  O-O-O {[%clk 0:00:37]} 15. O-O-O {[%clk 0:01:38]}  Ne4 {[%clk 0:00:34]} 16. Nxe4 {[%clk 0:01:35]}  dxe4 {[%clk 0:00:35]} 17. Qb3 {[%clk 0:01:35]}  f6 {[%clk 0:00:31]} 18. Bf4 {[%clk 0:01:06]}  Qd5 {[%clk 0:00:20]} 19. Qc3+ {[%clk 0:00:52]}  Qc6 {[%clk 0:00:20]} 20. Qb3 {[%clk 0:00:52]}  Qd5 {[%clk 0:00:20]} 21. Qb6 {[%clk 0:00:41]}  Rd7 {[%clk 0:00:10]} 22. Qa7 {[%clk 0:00:36]}  Rd8 {[%clk 0:00:10]} 23. Rxh7 {[%clk 0:00:29]}  Kd7 {[%clk 0:00:10]} 24. Kb1 {[%clk 0:00:25]}  Ke8 {[%clk 0:00:10]} 25. Qb6 {[%clk 0:00:20]}  Qf5 {[%clk 0:00:08]} 26. Bc7 {[%clk 0:00:12]}  Rxd4 {[%clk 0:00:08]} 27. Qxd4 {[%clk 0:00:11]}  Qxh7 {[%clk 0:00:09]} 28. Qd5 {[%clk 0:00:10]}  Rg5 {[%clk 0:00:06]} 29. Qxb7 {[%clk 0:00:10]}  Qf5 {[%clk 0:00:06]} 30. Qb3 {[%clk 0:00:08]}  e6 {[%clk 0:00:03]} 31. Rd8+ {[%clk 0:00:08]}  Kf7 {[%clk 0:00:03]} 32. Bg3 {[%clk 0:00:04]}  Rg8 {[%clk 0:00:02]} 33. a3 {[%clk 0:00:04]}  Be7 {[%clk 0:00:02]} 34. Rxg8 {[%clk 0:00:03]}  Kxg8 {[%clk 0:00:03]} 35. Qb7 {[%clk 0:00:03]}  Kf7 {[%clk 0:00:02]} 36. Qxa6 {[%clk 0:00:04]}  e3 {[%clk 0:00:03]} 37. f3 {[%clk 0:00:03]}  gxf3 {[%clk 0:00:03]} 38. gxf3 {[%clk 0:00:04]}  Qxf3 {[%clk 0:00:04]} 39. Be1 {[%clk 0:00:04]}  Qd1+ {[%clk 0:00:04]} 40. Ka2 {[%clk 0:00:00]}  Qxe1 {[%clk 0:00:05]} 0-1


[Site "https://www.chess.com"]

[Event "Titled Tuesday Blitz June 20 Early 2023"]
[White "Weetik, Vjacheslav"]
[Black "Ovchinnikov, Vsevolod"]
[WhiteFideId "4153472"]
[BlackFideId "24176842"]
[WhiteElo "2469"]
[BlackElo "2376"]
[Result "1/2-1/2"]
[Round "4"]
[TimeControl "180+2"]
[Date "2023.06.20"]
[WhiteClock "0:00:04"]
[BlackClock "0:00:05"]
[Board "33"]

1. d4 {[%clk 0:02:59]}  Nf6 {[%clk 0:02:59]} 2. c4 {[%clk 0:02:58]}  c6 {[%clk 0:02:58]} 3. Nf3 {[%clk 0:02:57]}  d5 {[%clk 0:02:58]} 4. g3 {[%clk 0:02:57]}  dxc4 {[%clk 0:02:58]} 5. Bg2 {[%clk 0:02:57]}  b5 {[%clk 0:02:58]} 6. O-O {[%clk 0:02:56]}  Bb7 {[%clk 0:02:59]} 7. a4 {[%clk 0:02:55]}  a6 {[%clk 0:02:59]} 8. Ne5 {[%clk 0:02:54]}  Nfd7 {[%clk 0:02:56]} 9. f4 {[%clk 0:02:37]}  Nxe5 {[%clk 0:02:43]} 10. fxe5 {[%clk 0:02:37]}  e6 {[%clk 0:02:44]} 11. e3 {[%clk 0:02:32]}  Be7 {[%clk 0:02:41]} 12. Qh5 {[%clk 0:02:29]}  O-O {[%clk 0:02:38]} 13. Nc3 {[%clk 0:02:29]}  Nd7 {[%clk 0:02:31]} 14. Bd2 {[%clk 0:02:18]}  g6 {[%clk 0:02:00]} 15. Qh3 {[%clk 0:02:02]}  Nxe5 {[%clk 0:01:51]} 16. dxe5 {[%clk 0:01:12]}  Qxd2 {[%clk 0:01:50]} 17. Ne4 {[%clk 0:01:12]}  Qxe3+ {[%clk 0:01:40]} 18. Kh1 {[%clk 0:01:13]}  Kg7 {[%clk 0:01:10]} 19. Nf6 {[%clk 0:00:48]}  h5 {[%clk 0:00:41]} 20. Rae1 {[%clk 0:00:41]}  Qg5 {[%clk 0:00:41]} 21. Rf4 {[%clk 0:00:30]}  Rad8 {[%clk 0:00:39]} 22. Bf3 {[%clk 0:00:20]}  Rd3 {[%clk 0:00:24]} 23. Qg2 {[%clk 0:00:17]}  h4 {[%clk 0:00:11]} 24. Rg4 {[%clk 0:00:11]}  Qd2 {[%clk 0:00:09]} 25. Qf1 {[%clk 0:00:06]}  hxg3 {[%clk 0:00:05]} 26. Rxg3 {[%clk 0:00:06]}  Rh8 {[%clk 0:00:05]} 27. Re2 {[%clk 0:00:03]}  Qd1 {[%clk 0:00:05]} 28. Re1 {[%clk 0:00:03]}  Qd2 {[%clk 0:00:06]} 29. Re2 {[%clk 0:00:03]}  Qd1 {[%clk 0:00:04]} 30. Re1 {[%clk 0:00:04]}  Qd2 {[%clk 0:00:05]} 1/2-1/2


[Site "https://www.chess.com"]

[Event "Titled Tuesday Blitz June 20 Early 2023"]
[White "brm72"]
[Black "Hayrapetyan, Hovik"]
[BlackFideId "13302639"]
[WhiteElo "2554"]
[BlackElo "2348"]
[Result "1-0"]
[Round "4"]
[TimeControl "180+2"]
[Date "2023.06.20"]
[WhiteClock "0:01:17"]
[BlackClock "0:00:05"]
[Board "35"]

1. e4 {[%clk 0:03:00]}  c5 {[%clk 0:02:58]} 2. Nf3 {[%clk 0:03:01]}  d6 {[%clk 0:02:58]} 3. d4 {[%clk 0:03:01]}  cxd4 {[%clk 0:02:59]} 4. Nxd4 {[%clk 0:03:02]}  Nf6 {[%clk 0:02:59]} 5. Nc3 {[%clk 0:03:02]}  a6 {[%clk 0:02:59]} 6. f3 {[%clk 0:03:03]}  e5 {[%clk 0:02:59]} 7. Nb3 {[%clk 0:03:03]}  Be6 {[%clk 0:02:56]} 8. Be3 {[%clk 0:03:03]}  h5 {[%clk 0:02:55]} 9. Qd2 {[%clk 0:03:03]}  Nbd7 {[%clk 0:02:54]} 10. O-O-O {[%clk 0:03:04]}  Rc8 {[%clk 0:02:51]} 11. Kb1 {[%clk 0:03:04]}  b5 {[%clk 0:02:32]} 12. h3 {[%clk 0:03:03]}  h4 {[%clk 0:02:23]} 13. Bd3 {[%clk 0:03:02]}  Be7 {[%clk 0:02:20]} 14. f4 {[%clk 0:03:01]}  Qc7 {[%clk 0:02:16]} 15. Rhe1 {[%clk 0:03:00]}  Nb6 {[%clk 0:02:09]} 16. Bxb6 {[%clk 0:02:51]}  Qxb6 {[%clk 0:02:10]} 17. Nd5 {[%clk 0:02:41]}  Nxd5 {[%clk 0:01:28]} 18. exd5 {[%clk 0:02:41]}  Bxd5 {[%clk 0:01:29]} 19. fxe5 {[%clk 0:02:20]}  Bxb3 {[%clk 0:00:29]} 20. axb3 {[%clk 0:02:10]}  O-O {[%clk 0:00:28]} 21. Bf5 {[%clk 0:01:52]}  Rcd8 {[%clk 0:00:25]} 22. e6 {[%clk 0:01:50]}  g6 {[%clk 0:00:17]} 23. exf7+ {[%clk 0:01:33]}  Kxf7 {[%clk 0:00:05]} 24. Qd5+ {[%clk 0:01:17]} 1-0


[Site "https://www.chess.com"]

[Event "Titled Tuesday Blitz June 20 Early 2023"]
[White "Kramnik, Vladimir"]
[Black "Leenhouts, Koen"]
[WhiteFideId "4101588"]
[BlackFideId "1008439"]
[WhiteElo "2703"]
[BlackElo "2409"]
[Result "1-0"]
[Round "4"]
[TimeControl "180+2"]
[Date "2023.06.20"]
[WhiteClock "0:00:32"]
[BlackClock "0:00:06"]
[Board "37"]

1. e4 {[%clk 0:03:00]}  e5 {[%clk 0:02:50]} 2. Nf3 {[%clk 0:03:01]}  Nc6 {[%clk 0:02:50]} 3. g3 {[%clk 0:03:01]}  Nf6 {[%clk 0:02:47]} 4. d3 {[%clk 0:03:01]}  Be7 {[%clk 0:02:47]} 5. Bg2 {[%clk 0:03:00]}  O-O {[%clk 0:02:47]} 6. O-O {[%clk 0:02:58]}  d5 {[%clk 0:02:42]} 7. exd5 {[%clk 0:02:58]}  Nxd5 {[%clk 0:02:42]} 8. Re1 {[%clk 0:02:58]}  Bf6 {[%clk 0:02:30]} 9. Nbd2 {[%clk 0:02:55]}  Bg4 {[%clk 0:02:22]} 10. h3 {[%clk 0:02:53]}  Bh5 {[%clk 0:02:19]} 11. Nc4 {[%clk 0:02:46]}  Re8 {[%clk 0:02:14]} 12. g4 {[%clk 0:02:45]}  Bg6 {[%clk 0:02:08]} 13. g5 {[%clk 0:02:44]}  Be7 {[%clk 0:02:08]} 14. Nfxe5 {[%clk 0:02:28]}  Nxe5 {[%clk 0:01:58]} 15. Rxe5 {[%clk 0:02:23]}  c6 {[%clk 0:01:50]} 16. Re1 {[%clk 0:02:05]}  Bc5 {[%clk 0:01:42]} 17. Rxe8+ {[%clk 0:01:44]}  Qxe8 {[%clk 0:01:43]} 18. d4 {[%clk 0:01:34]}  Bf8 {[%clk 0:01:34]} 19. c3 {[%clk 0:01:28]}  Rd8 {[%clk 0:01:30]} 20. Bd2 {[%clk 0:01:26]}  c5 {[%clk 0:01:25]} 21. Ne5 {[%clk 0:01:20]}  cxd4 {[%clk 0:01:23]} 22. cxd4 {[%clk 0:01:20]}  Nb6 {[%clk 0:01:07]} 23. Bc3 {[%clk 0:01:10]}  Qe7 {[%clk 0:00:53]} 24. Qg4 {[%clk 0:01:08]}  Nd5 {[%clk 0:00:49]} 25. h4 {[%clk 0:01:06]}  Nxc3 {[%clk 0:00:45]} 26. bxc3 {[%clk 0:01:05]}  Qc7 {[%clk 0:00:46]} 27. Qf3 {[%clk 0:00:58]}  Bd6 {[%clk 0:00:35]} 28. Re1 {[%clk 0:00:57]}  b6 {[%clk 0:00:17]} 29. h5 {[%clk 0:00:51]}  Bc2 {[%clk 0:00:17]} 30. h6 {[%clk 0:00:47]}  Bf8 {[%clk 0:00:15]} 31. Nc6 {[%clk 0:00:39]}  Rc8 {[%clk 0:00:11]} 32. hxg7 {[%clk 0:00:39]}  Kxg7 {[%clk 0:00:11]} 33. Qf6+ {[%clk 0:00:37]}  Kg8 {[%clk 0:00:11]} 34. Bd5 {[%clk 0:00:33]}  Bg6 {[%clk 0:00:10]} 35. Ne7+ {[%clk 0:00:32]}  Bxe7 {[%clk 0:00:08]} 36. Rxe7 {[%clk 0:00:33]}  Qxc3 {[%clk 0:00:05]} 37. Bxf7+ {[%clk 0:00:33]}  Bxf7 {[%clk 0:00:05]} 38. Qxf7+ {[%clk 0:00:32]}  Kh8 {[%clk 0:00:06]} 39. Qxh7# {[%clk 0:00:32]} 1-0


[Site "https://www.chess.com"]

[Event "Titled Tuesday Blitz June 20 Early 2023"]
[White "Budrewicz, Krzysztof"]
[Black "Sanal, Vahap"]
[WhiteFideId "1127950"]
[BlackFideId "6300545"]
[WhiteElo "2230"]
[BlackElo "2606"]
[Result "0-1"]
[Round "4"]
[TimeControl "180+2"]
[Date "2023.06.20"]
[WhiteClock "0:01:59"]
[BlackClock "0:02:15"]
[Board "44"]

1. d4 {[%clk 0:03:00]}  d6 {[%clk 0:03:00]} 2. c4 {[%clk 0:02:59]}  e5 {[%clk 0:02:59]} 3. Nc3 {[%clk 0:02:58]}  exd4 {[%clk 0:02:59]} 4. Qxd4 {[%clk 0:02:58]}  Nc6 {[%clk 0:03:00]} 5. Qd2 {[%clk 0:02:56]}  Nf6 {[%clk 0:03:01]} 6. Nf3 {[%clk 0:02:56]}  g6 {[%clk 0:02:51]} 7. g3 {[%clk 0:02:56]}  Be6 {[%clk 0:02:51]} 8. b3 {[%clk 0:02:56]}  d5 {[%clk 0:02:50]} 9. cxd5 {[%clk 0:02:55]}  Nxd5 {[%clk 0:02:50]} 10. Nxd5 {[%clk 0:02:53]}  Qxd5 {[%clk 0:02:49]} 11. Qxd5 {[%clk 0:02:52]}  Bxd5 {[%clk 0:02:50]} 12. Bb2 {[%clk 0:02:52]}  Bb4+ {[%clk 0:02:50]} 13. Nd2 {[%clk 0:02:38]}  Bxh1 {[%clk 0:02:44]} 14. Bxh8 {[%clk 0:02:38]}  O-O-O {[%clk 0:02:36]} 15. Bh3+ {[%clk 0:02:34]}  f5 {[%clk 0:02:36]} 16. O-O-O {[%clk 0:02:26]}  Bxd2+ {[%clk 0:02:36]} 17. Rxd2 {[%clk 0:02:26]}  Rxh8 {[%clk 0:02:37]} 18. f3 {[%clk 0:02:27]}  Rd8 {[%clk 0:02:33]} 19. Kd1 {[%clk 0:02:13]}  Nd4 {[%clk 0:02:29]} 20. Rd3 {[%clk 0:02:07]}  Bxf3 {[%clk 0:02:17]} 21. exf3 {[%clk 0:02:05]}  Nxf3 {[%clk 0:02:14]} 22. Rxd8+ {[%clk 0:02:02]}  Kxd8 {[%clk 0:02:15]} 23. Ke2 {[%clk 0:01:59]}  Ng1+ {[%clk 0:02:15]} 0-1


[Site "https://www.chess.com"]

[Event "Titled Tuesday Blitz June 20 Early 2023"]
[White "Goudriaan, Etienne"]
[Black "Bharath Subramaniyam H"]
[WhiteFideId "1021150"]
[BlackFideId "46634827"]
[WhiteElo "2318"]
[BlackElo "2400"]
[Result "0-1"]
[Round "4"]
[TimeControl "180+2"]
[Date "2023.06.20"]
[WhiteClock "0:00:07"]
[BlackClock "0:00:47"]
[Board "46"]

1. d4 {[%clk 0:03:00]}  Nf6 {[%clk 0:02:51]} 2. Nc3 {[%clk 0:03:01]}  d5 {[%clk 0:02:50]} 3. Bf4 {[%clk 0:03:01]}  e6 {[%clk 0:02:48]} 4. Qd3 {[%clk 0:02:54]}  Bb4 {[%clk 0:02:45]} 5. O-O-O {[%clk 0:02:53]}  O-O {[%clk 0:02:43]} 6. f3 {[%clk 0:02:50]}  c5 {[%clk 0:02:43]} 7. dxc5 {[%clk 0:02:49]}  Nbd7 {[%clk 0:02:41]} 8. e4 {[%clk 0:02:45]}  Qa5 {[%clk 0:02:25]} 9. Nge2 {[%clk 0:02:41]}  e5 {[%clk 0:02:10]} 10. Bg5 {[%clk 0:02:32]}  d4 {[%clk 0:02:09]} 11. Bxf6 {[%clk 0:02:11]}  Nxf6 {[%clk 0:02:07]} 12. Nb1 {[%clk 0:02:07]}  Qxa2 {[%clk 0:02:05]} 13. Qb5 {[%clk 0:02:01]}  a5 {[%clk 0:01:54]} 14. Ng3 {[%clk 0:01:47]}  Bd7 {[%clk 0:01:46]} 15. Qc4 {[%clk 0:01:46]}  Qa1 {[%clk 0:01:44]} 16. Nf5 {[%clk 0:01:43]}  b5 {[%clk 0:01:39]} 17. cxb6 {[%clk 0:01:20]}  Rac8 {[%clk 0:01:37]} 18. Qa6 {[%clk 0:01:07]}  Bxf5 {[%clk 0:01:14]} 19. exf5 {[%clk 0:01:06]}  Nd5 {[%clk 0:01:05]} 20. b7 {[%clk 0:00:58]}  Nc3 {[%clk 0:01:01]} 21. bxc3 {[%clk 0:00:36]}  dxc3 {[%clk 0:01:00]} 22. Rd3 {[%clk 0:00:26]}  Qb2+ {[%clk 0:00:53]} 23. Kd1 {[%clk 0:00:26]}  Qxb1+ {[%clk 0:00:54]} 24. Ke2 {[%clk 0:00:26]}  Qxc2+ {[%clk 0:00:55]} 25. Ke3 {[%clk 0:00:17]}  Qc1+ {[%clk 0:00:50]} 26. Ke2 {[%clk 0:00:16]}  c2 {[%clk 0:00:48]} 27. Kf2 {[%clk 0:00:07]}  Qe1+ {[%clk 0:00:47]} 28. Kg1 {[%clk 0:00:08]}  Bc5+ {[%clk 0:00:47]} 29. Rd4 {[%clk 0:00:07]}  Bxd4# {[%clk 0:00:47]} 0-1


[Site "https://www.chess.com"]

[Event "Titled Tuesday Blitz June 20 Early 2023"]
[White "Grigoriants, Sergey"]
[Black "Zavgorodniy, Sergiy"]
[WhiteFideId "4130804"]
[BlackFideId "14110148"]
[WhiteElo "2502"]
[BlackElo "2402"]
[Result "1/2-1/2"]
[Round "4"]
[TimeControl "180+2"]
[Date "2023.06.20"]
[WhiteClock "0:01:15"]
[BlackClock "0:02:57"]
[Board "48"]

1. d4 {[%clk 0:02:54]}  d5 {[%clk 0:03:00]} 2. c4 {[%clk 0:02:54]}  dxc4 {[%clk 0:03:01]} 3. Nf3 {[%clk 0:02:53]}  Nf6 {[%clk 0:03:01]} 4. e3 {[%clk 0:02:50]}  e6 {[%clk 0:03:01]} 5. Bxc4 {[%clk 0:02:50]}  a6 {[%clk 0:03:02]} 6. O-O {[%clk 0:02:50]}  b5 {[%clk 0:03:02]} 7. Bd3 {[%clk 0:02:49]}  Bb7 {[%clk 0:03:03]} 8. Qe2 {[%clk 0:02:47]}  Nbd7 {[%clk 0:03:02]} 9. a4 {[%clk 0:02:40]}  b4 {[%clk 0:03:02]} 10. Nbd2 {[%clk 0:02:39]}  c5 {[%clk 0:03:02]} 11. Nc4 {[%clk 0:02:39]}  Qc7 {[%clk 0:03:01]} 12. h3 {[%clk 0:02:18]}  Be7 {[%clk 0:03:01]} 13. Re1 {[%clk 0:01:54]}  O-O {[%clk 0:03:01]} 14. Bd2 {[%clk 0:01:26]}  Rac8 {[%clk 0:02:59]} 15. Rac1 {[%clk 0:01:25]}  Rfd8 {[%clk 0:02:59]} 16. Nce5 {[%clk 0:01:15]}  Qb6 {[%clk 0:02:57]} 1/2-1/2


[Site "https://www.chess.com"]

[Event "Titled Tuesday Blitz June 20 Early 2023"]
[White "Kovalenko, Igor"]
[Black "Sowul, Bartosz"]
[WhiteFideId "14117908"]
[BlackFideId "1137590"]
[WhiteElo "2574"]
[BlackElo "2188"]
[Result "0-1"]
[Round "4"]
[TimeControl "180+2"]
[Date "2023.06.20"]
[WhiteClock "0:00:18"]
[BlackClock "0:00:10"]
[Board "51"]

1. c4 {[%clk 0:02:58]}  Nf6 {[%clk 0:02:56]} 2. Nc3 {[%clk 0:02:58]}  d5 {[%clk 0:02:55]} 3. cxd5 {[%clk 0:02:58]}  Nxd5 {[%clk 0:02:56]} 4. g3 {[%clk 0:02:58]}  c5 {[%clk 0:02:56]} 5. Bg2 {[%clk 0:02:58]}  Nc7 {[%clk 0:02:56]} 6. d3 {[%clk 0:02:57]}  e5 {[%clk 0:02:51]} 7. Nf3 {[%clk 0:02:46]}  Nc6 {[%clk 0:02:51]} 8. Nd2 {[%clk 0:02:44]}  Bd7 {[%clk 0:02:44]} 9. O-O {[%clk 0:02:40]}  Be7 {[%clk 0:02:41]} 10. Nc4 {[%clk 0:02:40]}  f6 {[%clk 0:02:35]} 11. f4 {[%clk 0:02:38]}  b5 {[%clk 0:02:27]} 12. Ne3 {[%clk 0:02:38]}  exf4 {[%clk 0:02:22]} 13. Nf5 {[%clk 0:02:38]}  b4 {[%clk 0:02:16]} 14. Na4 {[%clk 0:02:21]}  Ne6 {[%clk 0:01:52]} 15. gxf4 {[%clk 0:02:16]}  O-O {[%clk 0:01:43]} 16. Kh1 {[%clk 0:02:08]}  Rc8 {[%clk 0:01:39]} 17. b3 {[%clk 0:02:07]}  Ncd4 {[%clk 0:01:27]} 18. Nxe7+ {[%clk 0:02:03]}  Qxe7 {[%clk 0:01:28]} 19. e3 {[%clk 0:02:00]}  Nf5 {[%clk 0:01:22]} 20. Bd2 {[%clk 0:01:59]}  Kh8 {[%clk 0:01:02]} 21. Nb2 {[%clk 0:01:58]}  Nh4 {[%clk 0:01:00]} 22. f5 {[%clk 0:01:42]}  Nxg2 {[%clk 0:00:53]} 23. Kxg2 {[%clk 0:01:41]}  Bc6+ {[%clk 0:00:51]} 24. e4 {[%clk 0:01:41]}  Nd4 {[%clk 0:00:48]} 25. Rc1 {[%clk 0:01:36]}  g6 {[%clk 0:00:47]} 26. fxg6 {[%clk 0:01:35]}  Rg8 {[%clk 0:00:48]} 27. Rf4 {[%clk 0:01:30]}  Rxg6+ {[%clk 0:00:47]} 28. Kh1 {[%clk 0:01:30]}  Rcg8 {[%clk 0:00:47]} 29. Be3 {[%clk 0:01:25]}  Qe5 {[%clk 0:00:34]} 30. Nc4 {[%clk 0:01:25]}  Qg5 {[%clk 0:00:32]} 31. Qf1 {[%clk 0:01:18]}  Qh5 {[%clk 0:00:24]} 32. Bxd4 {[%clk 0:01:12]}  cxd4 {[%clk 0:00:24]} 33. Qf2 {[%clk 0:01:12]}  Rg2 {[%clk 0:00:21]} 34. Qh4 {[%clk 0:00:48]}  Qe2 {[%clk 0:00:15]} 35. Rcf1 {[%clk 0:00:32]}  f5 {[%clk 0:00:14]} 36. Ne5 {[%clk 0:00:26]}  fxe4 {[%clk 0:00:14]} 37. Nxc6 {[%clk 0:00:26]}  exd3 {[%clk 0:00:11]} 38. Nxd4 {[%clk 0:00:26]}  Qe3 {[%clk 0:00:11]} 39. R4f3 {[%clk 0:00:18]}  Rg1+ {[%clk 0:00:10]} 0-1


[Site "https://www.chess.com"]

[Event "Titled Tuesday Blitz June 20 Early 2023"]
[White "Lorparizangeneh, Shahin"]
[Black "Krishnan, Varun"]
[WhiteFideId "12521604"]
[BlackFideId "5054508"]
[WhiteElo "2526"]
[BlackElo "2573"]
[Result "1-0"]
[Round "4"]
[TimeControl "180+2"]
[Date "2023.06.20"]
[WhiteClock "0:01:15"]
[BlackClock "0:00:00"]
[Board "54"]

1. e4 {[%clk 0:03:00]}  c5 {[%clk 0:02:59]} 2. Nf3 {[%clk 0:03:00]}  d6 {[%clk 0:02:59]} 3. Bb5+ {[%clk 0:03:01]}  Nc6 {[%clk 0:02:56]} 4. O-O {[%clk 0:03:00]}  Bd7 {[%clk 0:02:56]} 5. Re1 {[%clk 0:03:00]}  a6 {[%clk 0:02:56]} 6. Bf1 {[%clk 0:03:00]}  Nf6 {[%clk 0:02:53]} 7. c3 {[%clk 0:03:00]}  Bg4 {[%clk 0:02:53]} 8. h3 {[%clk 0:02:59]}  Bxf3 {[%clk 0:02:52]} 9. Qxf3 {[%clk 0:03:00]}  g6 {[%clk 0:02:52]} 10. d3 {[%clk 0:03:00]}  Bg7 {[%clk 0:02:51]} 11. Be3 {[%clk 0:03:01]}  Nd7 {[%clk 0:02:50]} 12. Nd2 {[%clk 0:03:00]}  O-O {[%clk 0:02:48]} 13. Qd1 {[%clk 0:02:59]}  b5 {[%clk 0:02:44]} 14. Nf3 {[%clk 0:02:59]}  b4 {[%clk 0:02:42]} 15. d4 {[%clk 0:02:59]}  e5 {[%clk 0:02:31]} 16. d5 {[%clk 0:02:52]}  Ne7 {[%clk 0:02:30]} 17. cxb4 {[%clk 0:02:47]}  cxb4 {[%clk 0:02:29]} 18. Qa4 {[%clk 0:02:45]}  a5 {[%clk 0:02:23]} 19. Rac1 {[%clk 0:02:39]}  f5 {[%clk 0:02:06]} 20. Ng5 {[%clk 0:02:38]}  f4 {[%clk 0:01:27]} 21. Ne6 {[%clk 0:02:33]}  fxe3 {[%clk 0:01:27]} 22. Rxe3 {[%clk 0:02:13]}  Qe8 {[%clk 0:01:07]} 23. Bb5 {[%clk 0:02:12]}  Qf7 {[%clk 0:01:03]} 24. Rf3 {[%clk 0:02:12]}  Nf6 {[%clk 0:01:00]} 25. Ng5 {[%clk 0:02:12]}  Bh6 {[%clk 0:00:44]} 26. Nxf7 {[%clk 0:02:06]}  Bxc1 {[%clk 0:00:43]} 27. Nxd6 {[%clk 0:01:59]}  Bxb2 {[%clk 0:00:42]} 28. Qc2 {[%clk 0:01:36]}  Bc3 {[%clk 0:00:40]} 29. Rxc3 {[%clk 0:01:35]}  bxc3 {[%clk 0:00:39]} 30. Qxc3 {[%clk 0:01:36]}  Nc8 {[%clk 0:00:30]} 31. Qxe5 {[%clk 0:01:31]}  Nxd6 {[%clk 0:00:29]} 32. Qxd6 {[%clk 0:01:32]}  Rab8 {[%clk 0:00:25]} 33. a4 {[%clk 0:01:31]}  Kg7 {[%clk 0:00:21]} 34. e5 {[%clk 0:01:28]}  Ne4 {[%clk 0:00:21]} 35. Qc7+ {[%clk 0:01:26]}  Kh6 {[%clk 0:00:20]} 36. f3 {[%clk 0:01:23]}  Rbc8 {[%clk 0:00:20]} 37. Qxa5 {[%clk 0:01:22]}  Ng3 {[%clk 0:00:14]} 38. Qd2+ {[%clk 0:01:21]}  Kg7 {[%clk 0:00:12]} 39. e6 {[%clk 0:01:21]}  Nf5 {[%clk 0:00:08]} 40. d6 {[%clk 0:01:19]}  Rfd8 {[%clk 0:00:05]} 41. e7 {[%clk 0:01:16]}  Rxd6 {[%clk 0:00:04]} 42. Qb2+ {[%clk 0:01:17]}  Kf7 {[%clk 0:00:04]} 43. e8=Q+ {[%clk 0:01:17]}  Rxe8 {[%clk 0:00:04]} 44. Bxe8+ {[%clk 0:01:18]}  Kxe8 {[%clk 0:00:04]} 45. Qh8+ {[%clk 0:01:18]}  Kf7 {[%clk 0:00:04]} 46. Qxh7+ {[%clk 0:01:18]}  Kf6 {[%clk 0:00:04]} 47. Qh8+ {[%clk 0:01:19]}  Kf7 {[%clk 0:00:03]} 48. a5 {[%clk 0:01:19]}  Rd1+ {[%clk 0:00:02]} 49. Kh2 {[%clk 0:01:19]}  Ne3 {[%clk 0:00:02]} 50. Qh7+ {[%clk 0:01:15]}  Kf6 {[%clk 0:00:00]} 51. Qh4+ {[%clk 0:01:15]} 1-0


[Site "https://www.chess.com"]

[Event "Titled Tuesday Blitz June 20 Early 2023"]
[White "Mendonca, Leon Luke"]
[Black "Sebag, Marie"]
[WhiteFideId "35028561"]
[BlackFideId "617822"]
[WhiteElo "2464"]
[BlackElo "2431"]
[Result "1-0"]
[Round "4"]
[TimeControl "180+2"]
[Date "2023.06.20"]
[WhiteClock "0:01:00"]
[BlackClock "0:00:00"]
[Board "57"]

1. e4 {[%clk 0:03:00]}  e5 {[%clk 0:02:20]} 2. Nf3 {[%clk 0:03:00]}  Nc6 {[%clk 0:02:19]} 3. Bc4 {[%clk 0:02:59]}  Nf6 {[%clk 0:02:18]} 4. d3 {[%clk 0:02:59]}  Bc5 {[%clk 0:02:18]} 5. h3 {[%clk 0:02:59]}  d6 {[%clk 0:02:18]} 6. Nbd2 {[%clk 0:03:00]}  O-O {[%clk 0:02:17]} 7. a4 {[%clk 0:02:58]}  a6 {[%clk 0:02:18]} 8. Nf1 {[%clk 0:02:57]}  d5 {[%clk 0:02:15]} 9. exd5 {[%clk 0:02:55]}  Nxd5 {[%clk 0:02:15]} 10. Ng3 {[%clk 0:02:54]}  h6 {[%clk 0:02:13]} 11. O-O {[%clk 0:02:54]}  Be6 {[%clk 0:02:09]} 12. Re1 {[%clk 0:02:53]}  Bd6 {[%clk 0:02:04]} 13. c3 {[%clk 0:02:43]}  f5 {[%clk 0:02:03]} 14. Qb3 {[%clk 0:02:32]}  Na5 {[%clk 0:01:48]} 15. Bxd5 {[%clk 0:02:32]}  Nxb3 {[%clk 0:01:43]} 16. Bxe6+ {[%clk 0:02:32]}  Kh8 {[%clk 0:01:43]} 17. Bxb3 {[%clk 0:02:33]}  Qf6 {[%clk 0:01:37]} 18. Bd2 {[%clk 0:02:28]}  Rae8 {[%clk 0:01:36]} 19. Re2 {[%clk 0:02:27]}  Qg6 {[%clk 0:01:00]} 20. Rae1 {[%clk 0:02:27]}  Qf6 {[%clk 0:00:50]} 21. Bc4 {[%clk 0:02:16]}  Re7 {[%clk 0:00:40]} 22. a5 {[%clk 0:02:16]}  Rfe8 {[%clk 0:00:38]} 23. Bd5 {[%clk 0:02:16]}  c6 {[%clk 0:00:37]} 24. Bc4 {[%clk 0:02:17]}  Bc7 {[%clk 0:00:34]} 25. b4 {[%clk 0:02:17]}  g5 {[%clk 0:00:25]} 26. Nh2 {[%clk 0:02:00]}  Qg6 {[%clk 0:00:17]} 27. Nf3 {[%clk 0:01:52]}  Kg7 {[%clk 0:00:13]} 28. Bc1 {[%clk 0:01:38]}  Kh8 {[%clk 0:00:12]} 29. Nd2 {[%clk 0:01:36]}  f4 {[%clk 0:00:10]} 30. Nge4 {[%clk 0:01:34]}  g4 {[%clk 0:00:10]} 31. hxg4 {[%clk 0:01:32]}  Qxg4 {[%clk 0:00:06]} 32. Nf6 {[%clk 0:01:30]}  Qg6 {[%clk 0:00:05]} 33. Nxe8 {[%clk 0:01:30]}  Rxe8 {[%clk 0:00:04]} 34. Nf3 {[%clk 0:01:30]}  Re7 {[%clk 0:00:03]} 35. Bxf4 {[%clk 0:01:29]}  Rg7 {[%clk 0:00:01]} 36. Bg3 {[%clk 0:01:21]}  e4 {[%clk 0:00:01]} 37. Nh4 {[%clk 0:01:00]}  Qg5 {[%clk 0:00:00]} 38. Rxe4 {[%clk 0:01:00]} 1-0


[Site "https://www.chess.com"]